bitfinex-derivatives/quotes_BTCF0:USTF0_20250427
["timestamp","ask_amount","ask_price","bid_price","bid_amount"]
[1745716899715,0.324,94838.0,94837.0,0.2108206]
[1745716900812,0.324,94838.0,94837.0,0.22065923]
[1745716903222,0.324,94838.0,94837.0,0.00983863]
[1745716903431,0.5348184,94838.0,94837.0,0.00983863]
[1745716903617,0.324,94838.0,94837.0,0.22065923]
[1745716903817,0.324,94838.0,94837.0,0.21865923]
[1745716904018,0.324,94838.0,94837.0,0.21965923]
[1745716905121,0.5348184,94838.0,94837.0,0.00883863]
[1745716906219,0.6548184,94838.0,94837.0,0.00883863]
[1745716906812,1.79748241,94838.0,94837.0,0.00883863]
[1745716907117,1.79748241,94838.0,94837.0,3e-08]
[1745716907517,1.79748241,94838.0,94820.0,0.00105462]
[1745716907518,1.05944401,94838.0,94820.0,0.00105462]
[1745716907741,0.2108451,94826.0,94820.0,0.00105462]
[1745716907927,0.4708451,94826.0,94820.0,0.00105462]
[1745716908224,0.2108629,94818.0,94802.0,0.21309715]
[1745716908423,0.8416629,94818.0,94802.0,0.21309715]
[1745716908725,0.8416629,94818.0,94806.0,0.2108894]
[1745716909020,0.8416629,94818.0,94802.0,0.21309715]
[1745716909215,0.9616629,94818.0,94807.0,0.2108865]
[1745716909421,0.9616629,94818.0,94806.0,0.0527223]
[1745716909618,0.9616629,94818.0,94796.0,0.15982286]
[1745716909619,1.633594,94818.0,94796.0,0.15982286]
[1745716909819,0.5717096,94797.0,94796.0,0.15982286]
[1745716910020,0.5817096,94797.0,94796.0,0.37073466]
[1745716910222,0.7017096,94797.0,94796.0,0.37073466]
[1745716910523,0.7017096,94797.0,94796.0,0.37862381]
[1745716910821,0.7017096,94797.0,94796.0,0.38062381]
[1745716911221,1.1404096,94797.0,94796.0,0.16771201]
[1745716911425,1.1404096,94797.0,94796.0,0.16971201]
[1745716912325,0.8504096,94797.0,94796.0,0.38062381]
[1745716913166,0.8504096,94797.0,94796.0,0.16971201]
[1745716913167,0.8604096,94797.0,94796.0,0.16971201]
[1745716913325,0.9604096,94797.0,94796.0,0.16971201]
[1745716913623,0.9604096,94797.0,94790.0,0.00105496]
[1745716913624,0.2109229,94791.0,94790.0,0.00105496]
[1745716913921,0.4809229,94791.0,94790.0,0.00105496]
[1745716914121,0.6009229,94791.0,94790.0,0.00105496]
[1745716914518,0.7630229,94791.0,94790.0,0.00105496]
[1745716914921,0.5430229,94791.0,94790.0,0.00205496]
[1745716915432,0.5430229,94791.0,94790.0,0.01007821]
[1745716916123,0.7830229,94791.0,94790.0,0.01007821]
[1745716916721,0.5230229,94791.0,94790.0,0.22100341]
[1745716917224,0.5230229,94791.0,94790.0,0.01007821]
[1745716917418,0.5230229,94791.0,94790.0,0.22100341]
[1745716917819,0.5230229,94791.0,94790.0,0.01007821]
[1745716920226,0.2109296,94788.0,94787.0,0.00527496]
[1745716920424,0.8417296,94788.0,94787.0,0.00527496]
[1745716921253,0.9617296,94788.0,94787.0,0.00527496]
[1745716921435,0.9617296,94788.0,94787.0,0.00627496]
[1745716921924,0.9617296,94788.0,94787.0,0.01405725]
[1745716922134,0.39,94788.0,94787.0,1.10798905]
[1745716922427,0.1672,94805.0,94804.0,0.210894]
[1745716922625,0.3608,94811.0,94787.0,1.25785725]
[1745716922626,0.3608,94811.0,94810.0,0.2108807]
[1745716923223,0.3608,94811.0,94810.0,0.3308807]
[1745716923422,0.3608,94811.0,94810.0,0.12]
[1745716923624,0.3608,94811.0,94810.0,0.4387]
[1745716924018,0.3608,94811.0,94810.0,0.6495807]
[1745716924465,0.3608,94811.0,94810.0,0.4387]
[1745716924726,0.8316784,94811.0,94810.0,0.12]
[1745716925133,0.8316784,94811.0,94804.0,0.001]
[1745716925134,0.2108918,94805.0,94804.0,0.001]
[1745716925434,0.8316918,94805.0,94804.0,0.001]
[1745716925738,0.2109252,94790.0,94789.0,0.5296274]
[1745716926028,0.3608,94790.0,94789.0,0.5296274]
[1745716926233,0.5717252,94790.0,94789.0,0.5296274]
[1745716926425,0.7299252,94790.0,94789.0,0.5296274]
[1745716926733,0.7299252,94790.0,94789.0,0.3187]
[1745716926922,0.7299252,94790.0,94789.0,0.1578]
[1745716927124,0.7299252,94790.0,94789.0,0.001]
[1745716927328,0.2109652,94772.0,94771.0,0.1637]
[1745716928027,0.3196,94773.0,94771.0,0.1637]
[1745716928226,0.1582,94773.0,94772.0,0.2109652]
[1745716928421,0.1582,94773.0,94772.0,0.3730652]
[1745716928621,0.369163,94773.0,94772.0,0.3730652]
[1745716928832,0.3608,94780.0,94779.0,0.2109496]
[1745716929035,0.3608,94780.0,94772.0,0.17020114]
[1745716929036,0.1671,94788.0,94773.0,0.0527404]
[1745716929330,0.2109457,94781.0,94780.0,0.2109465]
[1745716929630,0.2109457,94781.0,94780.0,0.5446465]
[1745716929927,0.5717457,94781.0,94780.0,0.1621]
[1745716930116,0.2109541,94777.0,94776.0,0.2109554]
[1745716930320,0.2109541,94777.0,94776.0,0.3730554]
[1745716930625,0.3309,94780.0,94779.0,0.2109496]
[1745716930626,0.1671,94780.0,94779.0,0.2109496]
[1745716930826,0.4818,94781.0,94780.0,0.2129474]
[1745716931020,0.4918,94781.0,94780.0,0.2129474]
[1745716931326,0.3608,94781.0,94780.0,0.2109474]
[1745716931728,0.3608,94781.0,94780.0,0.3337]
[1745716931729,0.5717452,94781.0,94780.0,0.3337]
[1745716932028,0.2109541,94777.0,94776.0,0.002]
[1745716932830,0.2109608,94774.0,94773.0,0.3359]
[1745716933128,0.210963,94773.0,94772.0,0.00810114]
[1745716933327,0.2109697,94770.0,94769.0,0.1652]
[1745716933526,0.5717697,94770.0,94769.0,0.1652]
[1745716933730,0.5717697,94770.0,94769.0,0.00773007]
[1745716933924,0.2109808,94765.0,94764.0,0.1652]
[1745716934833,0.1607,94765.0,94764.0,0.376183]
[1745716935629,0.3716808,94765.0,94764.0,0.376183]
[1745716935830,0.1607,94765.0,94764.0,0.38408336]
[1745716936337,0.3726808,94765.0,94764.0,0.38908336]
[1745716936733,0.1617,94765.0,94764.0,0.38908336]
[1745716937140,0.3726808,94765.0,94764.0,0.38908336]
[1745716937933,0.1617,94765.0,94764.0,0.38908336]
[1745716938233,0.001,94765.0,94764.0,0.38908336]
[1745716939741,0.2119808,94765.0,94764.0,0.38808336]
[1745716940547,0.2119808,94765.0,94764.0,0.17710036]
[1745716940735,0.2219808,94765.0,94764.0,0.01190036]
[1745716941129,0.3419808,94765.0,94764.0,0.01190036]
[1745716941330,0.3419808,94765.0,94764.0,0.22288336]
[1745716941838,0.3419808,94765.0,94764.0,0.01190036]
[1745716942960,0.3419808,94765.0,94764.0,0.22288336]
[1745716943133,0.001,94765.0,94764.0,0.22288336]
[1745716943534,0.2119808,94765.0,94764.0,0.01190036]
[1745716944236,0.5391808,94765.0,94764.0,0.01190036]
[1745716944541,0.8999808,94765.0,94764.0,0.01190036]
[1745716944737,0.8999808,94765.0,94756.0,0.0106164]
[1745716944738,0.0527482,94760.0,94756.0,0.0106164]
[1745716944933,0.5717986,94757.0,94756.0,0.0106164]
[1745716945130,0.2110097,94752.0,94751.0,0.00951129]
[1745716945531,0.2110097,94752.0,94741.0,0.17113718]
[1745716945532,0.211032,94742.0,94741.0,0.17113718]
[1745716945743,0.211032,94742.0,94741.0,0.38217138]
[1745716945946,0.3608,94743.0,94742.0,0.211032]
[1745716946136,0.3608,94743.0,94742.0,0.540132]
[1745716947135,0.3618,94743.0,94742.0,0.544132]
[1745716947948,0.5728298,94743.0,94742.0,0.3331]
[1745716948140,0.5227,94743.0,94742.0,0.544132]
[1745716948344,0.1619,94743.0,94742.0,0.544132]
[1745716949253,0.3729298,94743.0,94742.0,0.544132]
[1745716949554,0.7337298,94743.0,94742.0,0.004]
[1745716949850,0.7437298,94743.0,94742.0,0.004]
[1745716951306,0.5227,94743.0,94742.0,0.539632]
[1745716951443,0.5728298,94743.0,94742.0,0.539632]
[1745716951645,0.5728298,94743.0,94742.0,0.3286]
[1745716951955,0.5728298,94743.0,94742.0,0.539632]
[1745716952145,0.5728298,94743.0,94742.0,0.3286]
[1745716952753,0.5728298,94743.0,94742.0,0.3246]
[1745716953052,0.5728298,94743.0,94742.0,0.1595]
[1745716953351,0.2638087,94737.0,94736.0,0.2110451]
[1745716953646,0.2110476,94737.0,94736.0,0.2110451]
[1745716954242,0.2110395,94739.0,94738.0,0.2110387]
[1745716954551,0.2110454,94737.0,94735.0,0.1718]
[1745716954749,0.2110454,94737.0,94736.0,0.2110432]
[1745716954949,0.2110454,94737.0,94736.0,0.3783432]
[1745716955251,0.2110454,94737.0,94736.0,0.34691055]
[1745716955449,0.2110454,94737.0,94736.0,0.55795595]
[1745716955947,0.2120454,94737.0,94736.0,0.55795595]
[1745716959455,0.2120454,94737.0,94736.0,0.34691055]
[1745716959755,0.5828454,94737.0,94736.0,0.00781055]
[1745716959951,0.5828454,94737.0,94705.0,0.15982286]
[1745716959952,0.2110632,94728.0,94705.0,0.15982286]
[1745716960254,0.8218632,94728.0,94727.0,0.01328915]
[1745716960553,0.8218632,94728.0,94727.0,0.0052783]
[1745716962851,0.6108,94728.0,94727.0,0.22432447]
[1745716963064,0.12,94728.0,94727.0,0.2163437]
[1745716963254,0.625613,94737.0,94736.0,0.2110454]
[1745716963859,0.625613,94737.0,94730.0,0.2638151]
[1745716963860,0.2638276,94731.0,94730.0,0.2638151]
[1745716964453,0.2638276,94731.0,94730.0,0.4222151]
[1745716964960,0.0527644,94731.0,94727.0,0.01335027]
[1745716965154,0.2110632,94728.0,94727.0,0.0052783]
[1745716965354,0.4610632,94728.0,94727.0,0.0052783]
[1745716966287,0.5810632,94728.0,94727.0,0.0052783]
[1745716966458,0.5820632,94728.0,94727.0,0.0052783]
[1745716967363,0.2111234,94701.0,94700.0,0.10605596]
[1745716967659,0.5719234,94701.0,94700.0,0.26355596]
[1745716968052,0.5719234,94701.0,94700.0,0.10605596]
[1745716968747,0.5719234,94701.0,94700.0,0.11390384]
[1745716969056,0.9129234,94701.0,94700.0,0.11390384]
[1745716970862,0.9129234,94701.0,94678.0,0.00158397]
[1745716970863,0.2111591,94685.0,94678.0,0.00158397]
[1745716971059,1.2027591,94685.0,94678.0,0.00158397]
[1745716971260,1.3227591,94685.0,94678.0,0.00158397]
[1745716971460,1.3227591,94685.0,94684.0,0.11871647]
[1745716971461,1.4283711,94685.0,94684.0,0.11871647]
[1745716972151,0.2111903,94671.0,94667.0,0.00528164]
[1745716972350,0.7019903,94671.0,94667.0,0.21647944]
[1745716972557,0.7019903,94671.0,94668.0,0.2111954]
[1745716972758,0.7019903,94671.0,94670.0,0.00906565]
[1745716973165,0.8219903,94671.0,94670.0,0.22025815]
[1745716973557,0.8219903,94671.0,94670.0,0.00906565]
[1745716973776,0.8229903,94671.0,94670.0,0.00906565]
[1745716974263,0.9917903,94671.0,94670.0,0.00906565]
[1745716974768,0.9917903,94671.0,94670.0,0.0010563]
[1745716975368,1.1525903,94671.0,94670.0,0.0010563]
[1745716975909,1.1515903,94671.0,94670.0,0.0010563]
[1745716976063,1.1525903,94671.0,94670.0,0.0010563]
[1745716976363,0.9917903,94671.0,94670.0,0.0010563]
[1745716976762,0.9917903,94671.0,94670.0,0.2122488]
[1745716976985,0.8617903,94671.0,94670.0,0.2122488]
[1745716977165,0.7417903,94671.0,94670.0,0.0010563]
[1745716977364,0.7417903,94671.0,94670.0,0.1748563]
[1745716977868,0.8517903,94671.0,94670.0,0.1748563]
[1745716978068,0.8517903,94671.0,94670.0,0.0010563]
[1745716979157,1.07741831,94671.0,94670.0,0.0010563]
[1745716979673,0.9717903,94671.0,94670.0,0.0010563]
[1745716981468,0.5918,94671.0,94670.0,0.2122488]
[1745716981670,0.5908,94671.0,94670.0,0.2122488]
[1745716981870,0.8039903,94671.0,94670.0,0.5378488]
[1745716982567,0.8039903,94671.0,94670.0,0.3266563]
[1745716983760,0.8039903,94671.0,94670.0,0.5378488]
[1745716984274,0.6839903,94671.0,94670.0,0.5378488]
[1745716984501,0.6839903,94671.0,94670.0,0.3266563]
[1745716984776,0.002,94671.0,94670.0,0.6434768]
[1745716984964,0.3608,94690.0,94677.0,0.052794]
[1745716985265,0.2111422,94693.0,94684.0,0.2111613]
[1745716985459,0.1624,94699.0,94684.0,0.2111613]
[1745716985656,0.1624,94699.0,94684.0,0.3167733]
[1745716985864,0.2111401,94694.0,94684.0,0.3167733]
[1745716986063,0.2111342,94697.0,94684.0,0.6528733]
[1745716986265,0.2111396,94694.0,94684.0,0.6528733]
[1745716986459,0.0527828,94698.0,94690.0,0.2111458]
[1745716986664,0.02,94698.0,94697.0,0.2111323]
[1745716986872,0.2111291,94699.0,94698.0,0.2111301]
[1745716987170,0.1588,94701.0,94700.0,0.2111256]
[1745716987372,0.3999234,94701.0,94700.0,0.22710713]
[1745716987962,0.03,94701.0,94700.0,0.39380713]
[1745716988168,0.5719211,94702.0,94701.0,0.2111234]
[1745716988369,0.5719211,94702.0,94701.0,0.35168153]
[1745716988804,0.7307211,94702.0,94701.0,0.35168153]
[1745716988959,0.7307211,94702.0,94701.0,0.56280493]
[1745716989565,0.5196,94702.0,94701.0,0.56280493]
[1745716989965,0.7307211,94702.0,94701.0,0.56280493]
[1745716990167,0.7307211,94702.0,94701.0,0.35168153]
[1745716990918,0.5206,94702.0,94701.0,0.5468023]
[1745716992176,0.3618,94702.0,94701.0,0.5468023]
[1745716992472,0.001,94702.0,94701.0,0.5468023]
[1745716992973,0.001,94702.0,94701.0,0.6523983]
[1745716993277,0.3608,94721.0,94720.0,0.2110599]
[1745716993772,0.3608,94721.0,94720.0,0.3166319]
[1745716993964,0.3608,94721.0,94720.0,0.6548319]
[1745716994174,0.3608,94721.0,94720.0,0.6692599]
[1745716995374,0.3608,94721.0,94720.0,0.12]
[1745716995375,0.5768577,94721.0,94720.0,0.12]
[1745716995571,0.5868577,94721.0,94720.0,0.124848]
[1745716995767,0.8168577,94721.0,94720.0,0.124848]
[1745716996206,1.2803577,94721.0,94720.0,0.007848]
[1745716996376,0.0527674,94716.0,94708.0,0.1661]
[1745716996582,0.3608,94710.0,94708.0,0.1661]
[1745716996874,0.1728,94709.0,94708.0,0.1661]
[1745716997576,0.1728,94709.0,94708.0,0.3289]
[1745716997882,0.1728,94709.0,94708.0,0.3299]
[1745716998176,0.1728,94709.0,94708.0,0.3289]
[1745716998483,0.1728,94709.0,94661.0,0.57389715]
[1745716998484,1.297328,94709.0,94661.0,0.57389715]
[1745716998664,1.297328,94709.0,94650.0,1.12568]
[1745716998665,0.3608,94680.0,94678.0,0.1]
[1745716998866,0.1707,94679.0,94672.0,0.3289]
[1745716999076,0.2111647,94673.0,94672.0,0.17387277]
[1745716999271,0.2111647,94673.0,94672.0,0.00777277]
[1745716999472,0.2111647,94673.0,94670.0,0.2122269]
[1745716999473,0.2111692,94671.0,94670.0,0.2122269]
[1745716999773,0.5719692,94671.0,94670.0,0.1744563]
[1745716999976,0.5719692,94671.0,94670.0,0.0010563]
[1745717000870,0.5729692,94671.0,94670.0,0.0030563]
[1745717001073,0.5729692,94671.0,94670.0,0.2142277]
[1745717001676,0.5729692,94671.0,94670.0,0.0030563]
[1745717002168,0.7467692,94671.0,94670.0,0.01101881]
[1745717002366,0.7467692,94671.0,94670.0,0.0030563]
[1745717002681,0.7467692,94671.0,94670.0,0.2142277]
[1745717003267,0.7467692,94671.0,94670.0,0.0030563]
[1745717003782,0.7467692,94671.0,94670.0,0.2142277]
[1745717003972,0.7467692,94671.0,94670.0,0.2122277]
[1745717004567,0.5366,94671.0,94670.0,0.2122277]
[1745717004966,0.3628,94671.0,94670.0,0.2122277]
[1745717005166,0.3628,94671.0,94670.0,0.3818277]
[1745717005374,0.5739692,94671.0,94670.0,0.3818277]
[1745717005569,0.7384692,94671.0,94670.0,0.3818277]
[1745717005770,0.5739692,94671.0,94670.0,0.3818277]
[1745717006075,0.3628,94671.0,94670.0,0.2122277]
[1745717006277,0.3608,94689.0,94688.0,0.2111312]
[1745717006476,0.2111427,94684.0,94683.0,0.2111355]
[1745717006679,0.2111356,94687.0,94686.0,0.2111312]
[1745717006890,0.3608,94689.0,94688.0,0.2111312]
[1745717007068,0.0801094,94695.0,94694.0,0.2111179]
[1745717007475,0.0801094,94695.0,94694.0,0.3167219]
[1745717008174,0.0801094,94695.0,94694.0,0.6107219]
[1745717008670,0.0831094,94695.0,94694.0,0.9715219]
[1745717009475,0.1632,94724.0,94723.0,0.2110532]
[1745717009977,0.3275,94724.0,94723.0,0.2110532]
[1745717010179,0.1643,94724.0,94723.0,0.2110532]
[1745717010383,0.375351,94724.0,94723.0,0.2110532]
[1745717010579,0.1643,94724.0,94723.0,0.2110532]
[1745717010788,0.003,94724.0,94723.0,0.2120532]
[1745717011076,0.003,94724.0,94723.0,0.3849532]
[1745717011384,0.3608,94725.0,94724.0,0.211051]
[1745717011886,0.3608,94725.0,94724.0,0.529651]
[1745717012200,0.3608,94725.0,94724.0,0.649651]
[1745717012583,0.07992521,94727.0,94726.0,0.2110465]
[1745717013173,0.0052,94728.0,94727.0,0.2110443]
[1745717013382,0.0052,94728.0,94727.0,0.5296443]
[1745717013682,0.2162421,94728.0,94727.0,0.1598]
[1745717013881,0.001,94727.0,94726.0,0.125]
[1745717014086,0.5438443,94727.0,94726.0,0.005]
[1745717014487,0.3328,94727.0,94726.0,0.2160465]
[1745717014678,0.001,94727.0,94726.0,0.2160465]
[1745717014982,0.0062,94728.0,94727.0,0.2150443]
[1745717015572,0.0062,94728.0,94727.0,0.5553443]
[1745717016278,0.1602,94736.0,94735.0,0.2110265]
[1745717017084,0.1602,94736.0,94735.0,0.5513265]
[1745717017380,0.1602,94736.0,94735.0,0.3836265]
[1745717017882,0.1602,94736.0,94735.0,0.3846265]
[1745717018085,0.1602,94736.0,94735.0,0.40027197]
[1745717018674,0.3712243,94736.0,94735.0,0.40027197]
[1745717018983,0.1602,94736.0,94735.0,0.40027197]
[1745717019181,0.3608,94767.0,94750.0,0.2109931]
[1745717019384,0.3728841,94755.0,94750.0,0.22663857]
[1745717019731,0.2122909,94751.0,94750.0,0.22663857]
[1745717020073,0.2122909,94751.0,94750.0,0.34663857]
[1745717020486,0.2152909,94751.0,94750.0,0.34763857]
[1745717020682,0.3810909,94751.0,94750.0,0.34763857]
[1745717021186,0.3810909,94751.0,94750.0,0.13664547]
[1745717021391,0.2110265,94735.0,94734.0,0.1618]
[1745717021685,0.2110265,94735.0,94734.0,0.22677957]
[1745717022076,0.3265,94735.0,94734.0,0.22677957]
[1745717023188,0.2110159,94740.0,94734.0,0.22677957]
[1745717023189,0.3608,94745.0,94744.0,0.2110064]
[1745717023379,0.2110038,94746.0,94745.0,0.2637486]
[1745717023579,0.2110064,94744.0,94743.0,0.3843076]
[1745717024080,0.17,94745.0,94744.0,0.2110064]
[1745717024276,0.3830042,94745.0,94744.0,0.3853064]
[1745717025500,0.3830042,94745.0,94744.0,0.1743]
[1745717025985,0.3810042,94745.0,94744.0,0.3843064]
[1745717026590,0.3830042,94745.0,94744.0,0.3853064]
[1745717027386,0.3608,94762.0,94746.0,0.05275]
[1745717027586,0.1582,94757.0,94756.0,0.2109797]
[1745717028185,0.1582,94757.0,94756.0,0.5398797]
[1745717028889,0.3691775,94757.0,94756.0,0.5398797]
[1745717029090,0.3691775,94757.0,94747.0,0.1]
[1745717029091,0.3221,94757.0,94747.0,0.1]
[1745717029292,0.0527495,94748.0,94732.0,0.3433]
[1745717029480,0.2110042,94745.0,94732.0,0.1736]
[1745717029684,0.3710042,94745.0,94730.0,0.2110356]
[1745717029984,0.3710042,94745.0,94732.0,0.2110324]
[1745717029985,0.7126042,94745.0,94732.0,0.2110324]
[1745717030295,0.2637962,94732.0,94731.0,0.2110344]
[1745717031186,0.6053962,94732.0,94731.0,0.2110344]
[1745717031388,0.6053962,94732.0,94731.0,0.2130344]
[1745717031789,0.211051,94724.0,94694.0,0.0527791]
[1745717031992,0.2110822,94710.0,94701.0,0.1674]
[1745717032288,0.2110822,94710.0,94707.0,0.01050397]
[1745717032594,0.2110822,94710.0,94704.0,0.1736]
[1745717032784,0.5718822,94710.0,94709.0,0.00794928]
[1745717033000,0.2638687,94706.0,94703.0,0.21309715]
[1745717033187,0.2638687,94706.0,94705.0,0.2110932]
[1745717033986,0.2110956,94704.0,94703.0,0.21309715]
[1745717034290,0.2110956,94704.0,94703.0,0.42519495]
[1745717034983,0.2110956,94704.0,94703.0,0.001]
[1745717035295,0.2111023,94701.0,94700.0,0.00105596]
[1745717035485,0.2111023,94701.0,94700.0,0.00882713]
[1745717035794,0.2111023,94701.0,94700.0,0.21216046]
[1745717036098,0.3311023,94701.0,94700.0,0.00105596]
[1745717037287,0.3311023,94701.0,94700.0,0.00205596]
[1745717037892,0.3311023,94701.0,94700.0,0.00987819]
[1745717038596,0.3311023,94701.0,94700.0,0.22098269]
[1745717038896,0.3311023,94701.0,94700.0,0.00987819]
[1745717039390,0.3311023,94701.0,94700.0,0.22098269]
[1745717039598,0.3311023,94701.0,94700.0,0.00987819]
[1745717043392,0.3311023,94701.0,94700.0,0.22098269]
[1745717043592,0.12,94701.0,94700.0,0.22098269]
[1745717043893,0.13287846,94720.0,94719.0,0.2110621]
[1745717044093,0.34393836,94720.0,94719.0,0.2110621]
[1745717044590,0.13287846,94720.0,94719.0,0.2110621]
[1745717044784,0.34393836,94720.0,94719.0,0.2110621]
[1745717045189,0.2110599,94720.0,94719.0,0.2110621]
[1745717046791,0.2150599,94720.0,94719.0,0.2120621]
[1745717046998,0.3648,94720.0,94719.0,0.2120621]
[1745717047221,0.5758599,94720.0,94719.0,0.2120621]
[1745717047388,0.5728599,94720.0,94719.0,0.2140621]
[1745717048699,0.5728599,94720.0,94719.0,0.002]
[1745717049195,0.2111,94702.0,94701.0,0.1696]
[1745717049689,0.0527742,94704.0,94700.0,0.00887819]
[1745717049690,0.2111023,94701.0,94700.0,0.00887819]
[1745717049885,0.3761023,94701.0,94700.0,0.00887819]
[1745717050687,0.3761023,94701.0,94700.0,0.17997819]
[1745717050883,0.3761023,94701.0,94700.0,0.34967819]
[1745717051089,0.3761023,94701.0,94700.0,0.56078269]
[1745717051299,0.3771023,94701.0,94700.0,0.56178269]
[1745717052201,0.166,94701.0,94700.0,0.56178269]
[1745717052388,0.001,94701.0,94700.0,0.56178269]
[1745717052702,0.2110718,94717.0,94716.0,0.2110666]
[1745717052999,0.2210718,94717.0,94716.0,0.2110666]
[1745717053199,0.3829718,94717.0,94716.0,0.2110666]
[1745717053398,0.1719,94717.0,94716.0,0.5518666]
[1745717053693,0.1619,94717.0,94716.0,0.5518666]
[1745717053889,0.3608,94720.0,94716.0,0.5518666]
[1745717053890,0.3608,94720.0,94719.0,0.2110621]
[1745717054298,0.3608,94720.0,94719.0,0.3310621]
[1745717054997,0.3658,94720.0,94719.0,0.3310621]
[1745717055197,0.5768599,94720.0,94719.0,0.2110621]
[1745717056096,0.2110666,94717.0,94716.0,0.1711]
[1745717057201,0.2140666,94717.0,94716.0,0.1721]
[1745717057900,0.2140666,94717.0,94716.0,0.001]
[1745717058594,0.2111023,94701.0,94697.0,0.00527997]
[1745717058847,0.5719023,94701.0,94697.0,0.00527997]
[1745717058987,0.5719023,94701.0,94698.0,0.3767085]
[1745717059299,0.5719023,94701.0,94698.0,0.3767073]
[1745717059493,0.5719023,94701.0,94698.0,0.1656]
[1745717059794,0.9045023,94701.0,94697.0,0.21638937]
[1745717059995,0.9045023,94701.0,94697.0,0.00527997]
[1745717060195,0.9055023,94701.0,94700.0,0.22098269]
[1745717060398,0.9055023,94701.0,94700.0,0.00987819]
[1745717060793,0.9055023,94701.0,94700.0,0.22098269]
[1745717061196,0.9045023,94701.0,94700.0,0.21998269]
[1745717061392,0.9055023,94701.0,94700.0,0.22098269]
[1745717061592,0.9055023,94701.0,94700.0,0.00987819]
[1745717062097,0.9055023,94701.0,94700.0,0.22098269]
[1745717062299,0.3618,94701.0,94700.0,0.22098269]
[1745717062497,0.3608,94732.0,94731.0,0.2110354]
[1745717062690,0.13287846,94742.0,94741.0,0.2110131]
[1745717062895,0.13287846,94742.0,94741.0,0.5718131]
[1745717063105,0.13287846,94742.0,94741.0,0.6918131]
[1745717063290,0.13287846,94742.0,94741.0,1.1419651]
[1745717064402,0.13387846,94742.0,94741.0,1.1429651]
[1745717064790,0.13287846,94742.0,94741.0,1.1419651]
[1745717064993,0.13387846,94742.0,94741.0,1.1429651]
[1745717065404,0.001,94742.0,94741.0,1.1429651]
[1745717065999,0.001,94742.0,94741.0,0.4656]
[1745717066191,0.2120109,94742.0,94741.0,0.121]
[1745717066396,0.001,94742.0,94741.0,0.3320131]
[1745717066799,0.1751,94742.0,94741.0,0.3320131]
[1745717067194,0.1751,94742.0,94741.0,0.2120131]
[1745717068200,0.3861109,94742.0,94741.0,0.001]
[1745717068902,0.2110332,94732.0,94731.0,0.3608]
[1745717069705,0.22116459,94741.0,94731.0,0.3608]
[1745717069706,0.16458775,94788.0,94739.0,0.052754]
[1745717069902,0.167,94757.0,94756.0,0.2109797]
[1745717070592,0.167,94757.0,94756.0,0.3713797]
[1745717071624,0.172,94757.0,94756.0,0.3723797]
[1745717073201,0.3322,94757.0,94756.0,0.3723797]
[1745717074904,0.3608,94774.0,94757.0,0.2109775]
[1745717075207,0.1703,94767.0,94757.0,0.5857095]
[1745717076296,0.1703,94767.0,94757.0,0.59347399]
[1745717076799,0.1,94800.0,94787.0,0.2109107]
[1745717076997,0.13287846,94802.0,94787.0,0.2109107]
[1745717076998,0.08973037,94802.0,94801.0,0.2108796]
[1745717077196,0.3608,94843.0,94807.0,0.0527162]
[1745717077197,0.2107963,94839.0,94807.0,0.0527162]
[1745717077404,0.1703,94831.0,94815.0,0.2108484]
[1745717077602,0.1703,94831.0,94815.0,0.5716484]
[1745717077800,0.1654,94830.0,94815.0,0.6716484]
[1745717078307,0.1654,94830.0,94815.0,0.9361164]
[1745717079101,0.1654,94830.0,94815.0,0.8306484]
[1745717079697,0.1654,94830.0,94815.0,0.83848017]
[1745717080414,0.1654,94830.0,94817.0,0.210844]
[1745717082409,1e-08,94818.0,94817.0,0.210844]
[1745717082615,1e-08,94818.0,94817.0,0.212844]
[1745717083607,0.21084181,94818.0,94817.0,0.002]
[1745717083807,0.2108611,94810.0,94799.0,0.1527209]
[1745717084002,0.5249,94809.0,94808.0,0.210864]
[1745717084210,0.2108658,94808.0,94806.0,0.2108663]
[1745717084407,0.2108662,94807.0,94803.0,0.0527187]
[1745717084714,0.1641,94807.0,94806.0,0.2108685]
[1745717085113,0.2841,94807.0,94806.0,0.21865023]
[1745717085312,0.4949662,94807.0,94806.0,0.00778173]
[1745717085531,0.2108924,94796.0,94788.0,0.5245]
[1745717085819,0.3749929,94795.0,94794.0,0.2108951]
[1745717086113,0.3749929,94795.0,94794.0,0.00771213]
[1745717086308,0.2109063,94789.0,94788.0,0.3608]
[1745717086717,0.2109063,94789.0,94788.0,0.3668]
[1745717087120,0.12,94789.0,94788.0,0.5777063]
[1745717087322,0.12,94789.0,94788.0,0.7504063]
[1745717087617,0.12,94789.0,94788.0,0.37474228]
[1745717087618,0.3309063,94789.0,94788.0,0.37474228]
[1745717087815,0.3309063,94789.0,94788.0,0.01394228]
[1745717088402,0.3319063,94789.0,94788.0,0.01394228]
[1745717089009,0.3319063,94789.0,94788.0,0.22485078]
[1745717090507,0.3319063,94789.0,94760.0,0.00105529]
[1745717090508,0.0527393,94767.0,94760.0,0.00105529]
[1745717090804,0.0527393,94767.0,94766.0,0.2109575]
[1745717091210,0.1727393,94767.0,94766.0,0.2109575]
[1745717091811,0.7444945,94767.0,94766.0,0.00781145]
[1745717092003,0.7444945,94767.0,94766.0,0.001]
[1745717092409,0.7444945,94767.0,94760.0,0.00105529]
[1745717092410,0.2109686,94762.0,94760.0,0.00105529]
[1745717092605,0.2109686,94762.0,94761.0,0.2109685]
[1745717093113,0.3309686,94762.0,94761.0,0.2109685]
[1745717093317,0.3309686,94762.0,94761.0,0.21889785]
[1745717094011,0.5021686,94762.0,94761.0,0.21889785]
[1745717094811,0.5041686,94762.0,94761.0,0.21989785]
[1745717095313,0.5021686,94762.0,94761.0,0.21989785]
[1745717095520,0.5041686,94762.0,94761.0,0.21989785]
[1745717095813,0.5041686,94762.0,94761.0,0.00892935]
[1745717096214,0.5141686,94762.0,94761.0,0.00892935]
[1745717097416,0.5141686,94762.0,94761.0,0.21989795]
[1745717097714,0.5041686,94762.0,94761.0,0.21989795]
[1745717098117,0.5041686,94762.0,94761.0,0.00892935]
[1745717099305,0.5141686,94762.0,94761.0,0.00892935]
[1745717100011,0.6196966,94762.0,94761.0,0.00892935]
[1745717100212,0.52765,94761.0,94713.0,0.4135684]
[1745717100422,0.3608,94757.0,94754.0,0.0527456]
[1745717100616,0.3608,94757.0,94731.0,0.3608]
[1745717100617,0.1674,94760.0,94759.0,0.210973]
[1745717100914,0.122,94762.0,94761.0,0.2109686]
[1745717101217,0.2109546,94768.0,94767.0,0.2636892]
[1745717101610,0.2109546,94768.0,94767.0,0.2109508]
[1745717102214,0.2109546,94768.0,94767.0,0.3309508]
[1745717102617,0.2149546,94768.0,94767.0,0.3309508]